{"text_format":"1","workbook":"xlsx","n_sheets":2,"sheets":["出展申込書_2025","CSV抽出用"],"not_rendered":{"charts":0,"images":0,"macros":1,"external_links":0,"defined_names":3,"comments":0,"pivot_tables":0},"unopened":[],"bounds":{"document_bytes":16777216,"sheet_cells":100000,"rows_first":2000,"rows_last":500,"rows_between":2000,"halvings":0,"cell_chars":16384,"cell_head_chars":4096},"cells_cut":0,"cells_raw":0,"read":"whole","date_system":"1900"}

{"sheet":"出展申込書_2025","index":0,"n_rows":94,"n_cols":57,"rows_kept":94,"cut":false,"hidden":false,"merged":[[47,0,59,0],[60,0,67,0],[67,6,67,9],[67,4,67,5],[62,4,63,5],[62,6,63,12],[62,13,63,18],[62,19,63,28],[33,8,33,10],[33,11,33,12],[33,15,33,16],[61,7,61,10],[65,19,65,28],[64,13,64,18],[58,10,58,11],[24,17,24,45],[38,4,39,46],[60,1,65,3],[51,12,51,13],[58,5,58,7],[75,1,75,46],[76,1,76,46],[73,37,73,46],[64,19,64,28],[63,29,63,35],[70,1,71,3],[70,4,70,11],[71,4,71,11],[60,12,60,28],[49,1,53,3],[29,0,29,45],[67,1,67,3],[37,0,39,0],[55,4,55,11],[55,12,55,13],[43,29,43,34],[43,6,43,21],[43,22,43,28],[65,29,65,35],[74,1,74,46],[73,3,73,8],[73,9,73,12],[73,13,73,20],[73,21,73,36],[77,13,77,20],[78,0,82,0],[91,0,91,46],[92,0,92,46],[83,0,88,0],[83,1,83,46],[84,1,85,46],[86,1,86,46],[87,1,87,2],[87,3,87,46],[88,1,88,46],[82,3,82,4],[82,10,82,12],[77,21,77,46],[77,1,77,3],[73,1,73,2],[22,26,22,27],[19,1,19,2],[19,3,19,12],[5,0,5,46],[20,1,20,2],[20,3,20,12],[4,0,4,46],[46,13,46,43],[68,0,77,0],[27,1,28,2],[27,3,28,12],[24,0,28,0],[24,1,25,2],[14,1,14,46],[41,4,42,46],[33,1,36,1],[33,2,36,3],[33,4,33,5],[25,38,25,46],[26,1,26,2],[35,4,36,46],[17,0,18,0],[18,1,18,46],[77,4,77,11],[42,0,46,0],[54,1,58,3],[53,12,53,13],[56,4,56,11],[51,4,51,11],[26,3,26,12],[1,0,1,46],[9,1,9,13],[9,16,9,46],[10,1,10,2],[20,13,21,15],[21,1,23,12],[11,1,11,46],[13,1,13,2],[16,1,16,46],[20,38,21,46],[20,17,21,25],[23,13,23,15],[23,17,23,46],[20,26,21,27],[20,28,21,36],[20,37,21,37],[22,28,22,36],[22,38,22,46],[66,6,66,9],[66,10,66,12],[66,4,66,5],[54,4,54,11],[65,13,65,18],[65,4,65,5],[64,6,64,12],[61,4,61,6],[30,1,30,46],[31,1,31,46],[58,8,58,9],[52,12,52,13],[53,4,53,11],[32,1,32,46],[40,1,42,1],[40,2,42,3],[43,1,44,1],[43,2,44,3],[37,1,39,1],[37,2,39,3],[48,15,48,16],[48,27,48,46],[61,36,65,46],[49,12,49,13],[52,4,52,11],[50,4,50,11],[50,12,50,13],[54,12,54,13],[48,1,48,11],[65,6,65,12],[56,12,56,13],[57,12,57,13],[5,51,6,53],[33,26,33,43],[33,13,33,14],[43,44,43,46],[43,37,43,43],[43,4,43,5],[44,4,44,46],[43,35,43,36],[13,3,13,46],[22,13,22,15],[22,17,22,25],[25,13,25,15],[25,17,25,25],[5,48,6,50],[10,3,10,46],[20,16,21,16],[7,0,7,46],[17,4,17,7],[9,0,16,0],[15,1,15,13],[25,26,25,27],[25,28,25,36],[26,13,28,46],[19,0,23,0],[0,3,0,19],[25,3,25,12],[24,3,24,12],[12,1,12,46],[72,1,72,46],[59,1,59,46],[47,1,47,45],[67,13,67,35],[67,10,67,12],[49,38,49,43],[50,38,50,43],[51,15,51,46],[55,15,58,46],[52,15,53,46],[50,15,50,37],[68,1,69,3],[68,4,68,11],[66,36,67,46],[64,29,64,35],[69,4,69,11],[61,16,61,19],[66,1,66,3],[64,4,64,5],[49,4,49,11]]}
[]
["水都おおさか森林の市2025  出展申込書"]
[]
[{"$f":"\"水都おおさか森林づくり・木づかい実行委員会　\"&IF(AO5>0,\"御中\",\"行\")","v":"水都おおさか森林づくり・木づかい実行委員会　行"}]
["　　　　　　　　　　　　　　　　　　　　　　　　　　　　　　　　　　　　　　　　申込年月日：　２０２５年　　　　月　　　　日"]
["   ◎申込締切　２０２５年６月２７日（金）",null,null,null,null,null,null,null,null,null,null,null,null,null,null,null,null,null,null,null,null,null,null,null,null,null,null,null,null,null,null,null,null,null,null,null,null,null,null,null,null,null,null,null,null,null,null,null,"チェックBOX",null,null,"計算式補正",null,null,null,{"$f":"AO5&\".\"&AT5&\"_\"&B12","v":"._"}]
[]
["出展募集要領及び今後主催者が指示する事項について遵守することに同意し、出展を申し込みます。",null,null,null,null,null,null,null,null,null,null,null,null,null,null,null,null,null,null,null,null,null,null,null,null,null,null,null,null,null,null,null,null,null,null,null,null,null,null,null,null,null,null,null,null,null,null,null,1,2,3,1,2,3,4,5,1]
[null,null,null,null,null,null,null,null,null,null,null,null,null,null,null,null,null,null,null,null,null,null,null,null,null,null,null,null,null,null,null,null,null,null,null,null,null,null,null,null,null,null,null,null,null,null,null,null,null,null,null,null,null,null,null,null,{"$f":"BE8+1","v":2}]
["出　展　者　名\n（会社・団体名）\n\n※告知掲載時等に使用しますので正確に記入してください。","<申込団体名> ",null,null,null,null,null,null,null,null,null,null,null,null,null,null,null,null,null,null,null,null,null,null,null,null,null,null,null,null,null,null,null,null,null,null,null,null,null,null,null,null,null,null,null,null,null,null,null,null,null,null,null,null,null,null,{"$f":"BE9+1","v":3}]
[null,"　フ　リ　ガ　ナ",null,null,null,null,null,null,null,null,null,null,null,null,null,null,null,null,null,null,null,null,null,null,null,null,null,null,null,null,null,null,null,null,null,null,null,null,null,null,null,null,null,null,null,null,null,null,null,null,null,{"$f":"IF(D11=\"\",\"フリガナ（必須）\",\"\")","v":"フリガナ（必須）"},null,null,null,null,4]
[null,null,null,null,null,null,null,null,null,null,null,null,null,null,null,null,null,null,null,null,null,null,null,null,null,null,null,null,null,null,null,null,null,null,null,null,null,null,null,null,null,null,null,null,null,null,null,null,null,null,null,{"$f":"IF(B12=\"\",IF(AZ11=\"\",\"団体名（必須）\",\"、団体名（必須）\"),\"\")","v":"、団体名（必須）"},null,null,null,null,5]
[null,"<出展名称>   ※上記と異なる名称を使用する場合のみ記入してください。",null,null,null,null,null,null,null,null,null,null,null,null,null,null,null,null,null,null,null,null,null,null,null,null,null,null,null,null,null,null,null,null,null,null,null,null,null,null,null,null,null,null,null,null,null,null,null,null,null,null,null,null,null,null,6]
[null,"　フ　リ　ガ　ナ",null,null,null,null,null,null,null,null,null,null,null,null,null,null,null,null,null,null,null,null,null,null,null,null,null,null,null,null,null,null,null,null,null,null,null,null,null,null,null,null,null,null,null,null,null,null,null,null,null,{"$f":"IF(D14=\"\",\"フリガナ（必須）\",\"\")","v":"フリガナ（必須）"},null,null,null,null,7]
[null,null,null,null,null,null,null,null,null,null,null,null,null,null,null,null,null,null,null,null,null,null,null,null,null,null,null,null,null,null,null,null,null,null,null,null,null,null,null,null,null,null,null,null,null,null,null,null,null,null,null,{"$f":"IF(B15=\"\",IF(AZ14=\"\",\"看板名（必須）\",\"、看板名（必須）\"),\"\")","v":"、看板名（必須）"},null,null,null,null,8]
[null,"<出展団体の自己紹介>　※30字以内で記載 ",null,null,null,null,null,null,null,null,null,null,null,null,null,null,null,null,null,null,null,null,null,null,null,null,null,null,null,null,null,null,null,null,null,null,null,null,null,null,null,null,null,null,null,null,null,null,null,null,null,null,null,null,null,null,9]
[null,null,null,null,null,null,null,null,null,null,null,null,null,null,null,null,null,null,null,null,null,null,null,null,null,null,null,null,null,null,null,null,null,null,null,null,null,null,null,null,null,null,null,null,null,null,null,null,null,null,null,null,null,null,null,null,10]
["住    　　 　　　 所\n※資料等の郵送先","〒",null,"‐",null,null,null,null,"　　　　　　　　　資料の送付方法　",null,null,null,null,null,null,null,null,null,null,null,null,null,null,null,null,null,null,null,null,null,null,null,null,null,null,null,null,null,null,null,null,null,null,null,null,null,null,null,null,null,null,{"$f":"IF(C18=\"\",\"郵便番号（必須）\",\"\")","v":"郵便番号（必須）"},null,null,null,null,11]
[null,null,null,null,null,null,null,null,null,null,null,null,null,null,null,null,null,null,null,null,null,null,null,null,null,null,null,null,null,null,null,null,null,null,null,null,null,null,null,null,null,null,null,null,null,null,null,null,null,null,null,{"$f":"IF(B19=\"\",IF(AZ18=\"\",\"住所（必須）\",\"、住所（必須）\"),\"\")","v":"、住所（必須）"},null,null,null,null,12]
["担 　当 　者　 名","〈所属・役職〉",null,null,null,null,null,null,null,null,null,null,null,"〈担当者連絡先〉",null,null,null,null,null,null,null,null,null,null,null,null,null,null,null,null,null,null,null,null,null,null,null,null,null,null,null,null,null,null,null,null,null,null,null,null,null,{"$f":"IF(D20=\"\",\"御担当者様の【所属・役職】を入力してください。\",\"\")","v":"御担当者様の【所属・役職】を入力してください。"},null,null,null,null,13]
[null,"　フ　リ　ガ　ナ",null,null,null,null,null,null,null,null,null,null,null,"電　　話 ：",null,null,"（",null,null,null,null,null,null,null,null,null,"）",null,null,null,null,null,null,null,null,null,null,"-",null,null,null,null,null,null,null,null,null,null,null,null,null,{"$f":"IF(D21=\"\",\"ふりがな（必須）\",\"\")","v":"ふりがな（必須）"},{"$f":"IF(B22=\"\",IF(AZ21=\"\",\"氏名（必須）\",\"、氏名（必須）\"),\"\")","v":"、氏名（必須）"},null,null,null,14]
[null,null,null,null,null,null,null,null,null,null,null,null,null,null,null,null,null,null,null,null,null,null,null,null,null,null,null,null,null,null,null,null,null,null,null,null,null,null,null,null,null,null,null,null,null,null,null,null,null,null,null,null,null,null,null,null,15]
[null,null,null,null,null,null,null,null,null,null,null,null,null,null,null,null,null,null,null,null,null,null,null,null,null,null,null,null,null,null,null,null,null,null,null,null,null,null,null,null,null,null,null,null,null,null,null,null,null,null,null,{"$f":"IF(R21=\"\",\"電話番号（必須）\",\"\")","v":"電話番号（必須）"},{"$f":"IF(R23=\"\",IF(AZ23=\"\",\"FAX番号\",\"、FAX番号\"),\"\")","v":"、FAX番号"},{"$f":"IF(R24=\"\",IF(AND(AZ23=\"\",BA23=\"\"),\"E-Mailアドレス\",\"、E-Mailアドレス\"),\"\")","v":"、E-Mailアドレス"},null,null,16]
[null,null,null,null,null,null,null,null,null,null,null,null,null," E ﾒ ｰ ﾙ ：",null,null,null,null,null,null,null,null,null,null,null,null,null,null,null,null,null,null,null,null,null,null,null,null,null,null,null,null,null,null,null,null,null,null,null,null,null,null,null,null,null,null,17]
["当日ブース責任者","〈　　氏　　　名　　〉　"]
[null,null,null,null,null,null,null,null,null,null,null,null,null,"携帯電話 ：",null,null,"（",null,null,null,null,null,null,null,null,null,"）",null,null,null,null,null,null,null,null,null,null,"-",null,null,null,null,null,null,null,null,null,null,null,null,null,{"$f":"IF(D26=\"\",\"氏名（必須）\",\"\")","v":"氏名（必須）"},{"$f":"IF(D27=\"\",IF(AZ26=\"\",\"生年月日（必須）\",\"、生年月日（必須）\"),\"\")","v":"、生年月日（必須）"},{"$f":"IF(R26=\"\",IF(AND(AZ26=\"\",BA26=\"\"),\"携帯電話番号（必須）\",\"、携帯電話番号（必須）\"),\"\")","v":"、携帯電話番号（必須）"},null,null,{"$f":"BE24+1","v":18}]
[null,"〈生年月日〉",null,null,null,null,null,null,null,null,null,null,null,"※会場となる公園の使用許可申請に必要となりますので、必ずご記入ください。\n※荒天時のイベント中止連絡や急な変更事項伝達等のため、必ず当日連絡のとれる電話番号を明記願います。　　　",null,null,null,null,null,null,null,null,null,null,null,null,null,null,null,null,null,null,null,null,null,null,null,null,null,null,null,null,null,null,null,null,null,null,null,null,null,null,null,null,null,null,19]
[null,"〈責任者連絡先〉",null,"（　　　　）　　　　- ",null,null,null,null,null,null,null,null,null,null,null,null,null,null,null,null,null,null,null,null,null,null,null,null,null,null,null,null,null,null,null,null,null,null,null,null,null,null,null,null,null,null,null,null,null,null,null,null,null,null,null,null,20]
[null,null,null,null,null,null,null,null,null,null,null,null,null,null,null,null,null,null,null,null,null,null,null,null,null,null,null,null,null,null,null,null,null,null,null,null,null,null,null,null,null,null,null,null,null,null,null,null,null,null,null,null,null,null,null,null,21]
["出展概要",null,null,null,null,null,null,null,null,null,null,null,null,null,null,null,null,null,null,null,null,null,null,null,null,null,null,null,null,null,null,null,null,null,null,null,null,null,null,null,null,null,null,null,null,null,null,null,null,null,null,null,null,null,null,null,{"$f":"BE29+1","v":22}]
[null,"　〈出展内容の紹介〉　※30文字以内でご記入ください。（当局HPでご紹介します。）",null,null,null,null,null,null,null,null,null,null,null,null,null,null,null,null,null,null,null,null,null,null,null,null,null,null,null,null,null,null,null,null,null,null,null,null,null,null,null,null,null,null,null,null,null,null,null,null,null,null,null,null,null,null,23]
[null,null,null,null,null,null,null,null,null,null,null,null,null,null,null,null,null,null,null,null,null,null,null,null,null,null,null,null,null,null,null,null,null,null,null,null,null,null,null,null,null,null,null,null,null,null,null,null,null,null,null,null,null,null,null,null,24]
[null,"＜内容＞※該当する出展内容（体験・展示・販売・実演）にチェックし、その内容をできるだけ詳しく記入してください。　",null,null,null,null,null,null,null,null,null,null,null,null,null,null,null,null,null,null,null,null,null,null,null,null,null,null,null,null,null,null,null,null,null,null,null,null,null,null,null,null,null,null,null,null,null,null,null,null,null,null,null,null,null,null,25]
[null,null,"体験",null,"参加費",null,null,null,null,null,null,"無料",null,"・",null,null,null,"有料",null,null,null,"（","価格　　　　　　　　",null,null,null,null,null,null,null,null,null,null,null,null,null,null,null,null,null,null,null,null,null,"円）",null,null,null,true,false,true,{"$f":"IF(AW34=TRUE,\"体験\",\"\")","v":"体験"},null,{"$f":"IF(AW41=TRUE,IF(AND(AZ34=\"\",BA34=\"\"),\"販売\",\"、販売\"),\"\")","v":""},{"$f":"IF(AW44=TRUE,IF(AND(AZ34=\"\",BA34=\"\",BB34=\"\"),\"実演\",\"、実演\"),\"\")","v":""},null,26]
[null,null,null,null,"〈体験内容〉※体験プログラムの内容ご記入ください。",null,null,null,null,null,null,null,null,null,null,null,null,null,null,null,null,null,null,null,null,null,null,null,null,null,null,null,null,null,null,null,null,null,null,null,null,null,null,null,null,null,null,null,null,null,null,{"$f":"IF(E36=\"\",\"\",\"〈体験内容〉\"&CHAR(10)&E36)","v":"〈体験内容〉\n切った丸太の輪切りの重量を測って、指定したグラム及びニアピンであれば粗品をプレゼントします。"},null,{"$f":"IF(E42=\"\",\"\",IF(AND(AZ35=\"\",BA35=\"\"),\"〈販売内容〉\"&CHAR(10)&E42,CHAR(10)&\"〈販売内容〉\"&CHAR(10)&E42))","v":""},{"$f":"IF(G44=\"\",\"\",IF(AND(AZ35=\"\",BA35=\"\",BB35=\"\"),\"〈実演内容〉\"&CHAR(10)&G44&IF(AD44=\"\",\"\",\"（実演時間：\"&AD44&\"分\")&IF(AS44=\"\",\"\",\"上演時刻\"&AS44),CHAR(10)&\"〈実演内容〉\"&CHAR(10)&G44&IF(AD44=\"\",\"\",\"（実演時間：\"&AD44&\"分\")&IF(AS44=\"\",\"\",\"上演時刻\"&AS44)))","v":""},null,27]
[null,null,null,null,"切った丸太の輪切りの重量を測って、指定したグラム及びニアピンであれば粗品をプレゼントします。",null,null,null,null,null,null,null,null,null,null,null,null,null,null,null,null,null,null,null,null,null,null,null,null,null,null,null,null,null,null,null,null,null,null,null,null,null,null,null,null,null,null,null,null,null,null,null,null,null,null,null,28]
[null,null,null,null,null,null,null,null,null,null,null,null,null,null,null,null,null,null,null,null,null,null,null,null,null,null,null,null,null,null,null,null,null,null,null,null,null,null,null,null,null,null,null,null,null,null,null,null,null,null,null,null,null,null,null,null,29]
["出   展   内   容",null,"展示",null,"〈展示内容・展示品〉",null,null,null,null,null,null,null,null,null,null,null,null,null,null,null,null,null,null,null,null,null,null,null,null,null,null,null,null,null,null,null,null,null,null,null,null,null,null,null,null,null,null,null,null,null,null,null,null,null,null,null,30]
[null,null,null,null,null,null,null,null,null,null,null,null,null,null,null,null,null,null,null,null,null,null,null,null,null,null,null,null,null,null,null,null,null,null,null,null,null,null,null,null,null,null,null,null,null,null,null,null,null,null,null,null,null,null,null,null,31]
[null,null,null,null,null,null,null,null,null,null,null,null,null,null,null,null,null,null,null,null,null,null,null,null,null,null,null,null,null,null,null,null,null,null,null,null,null,null,null,null,null,null,null,null,null,null,null,null,null,null,null,null,null,null,null,null,32]
[null,"　　　　","販売",null,"〈販売内容〉※販売品目・価格帯などをできるだけ詳しく記入してください。　　　　　　　　　　　　　　　　",null,null,null,null,null,null,null,null,null,null,null,null,null,null,null,null,null,null,null,null,null,null,null,null,null,null,null,null,null,null,null,null,null,null,null,null,null,null,null,null,null,null,null,false,null,null,null,null,null,null,null,33]
[null,null,null,null,null,null,null,null,null,null,null,null,null,null,null,null,null,null,null,null,null,null,null,null,null,null,null,null,null,null,null,null,null,null,null,null,null,null,null,null,null,null,null,null,null,null,null,null,null,null,null,null,null,null,null,null,34]
["ここに記入された内容を基に当日会場で配布するパンフレットを作成しますので、当日確実に実施できるもののみ記入してください。\nまた、内容に変更が生じた場合は、必ず９月12日（金）までに事務局にご連絡ください。",null,null,null,null,null,null,null,null,null,null,null,null,null,null,null,null,null,null,null,null,null,null,null,null,null,null,null,null,null,null,null,null,null,null,null,null,null,null,null,null,null,null,null,null,null,null,null,null,null,null,null,null,null,null,null,35]
[null,null,"実演",null,"実演内容",null,null,null,null,null,null,null,null,null,null,null,null,null,null,null,null,null,"実演時間",null,null,null,null,null,null,null,null,null,null,null,null,"分",null,"上演開示\n時　　 刻",null,null,null,null,null,null,null,null,null,null,false,null,null,{"$f":"IF(G44=\"\",\"実演内容（必須）\",\"\")","v":"実演内容（必須）"},{"$f":"IF(AD44=\"\",IF(AZ44=\"\",\"実演時間（必須）\",\"、実演時間（必須）\"),\"\")","v":"、実演時間（必須）"},{"$f":"IF(AS44=\"\",IF(AND(AZ44=\"\",BA44=\"\"),\"上演開始時刻\",\"、上演開始時刻\"),\"\")","v":"、上演開始時刻"},null,null,36]
[null,null,null,null,"※紙芝居・寸劇・実験など上演時間があるもの（上演開始時刻を掲載希望される場合はご記入ください）",null,null,null,null,null,null,null,null,null,null,null,null,null,null,null,null,null,null,null,null,null,null,null,null,null,null,null,null,null,null,null,null,null,null,null,null,null,null,null,null,null,null,null,null,null,null,null,null,null,null,null,37]
[null,"出展ブース内に無料プレゼント、試飲・試食コーナー等をお考えですか？",null,null,null,null,null,null,null,null,null,null,null,null,null,null,null,null,null,null,null,null,null,null,null,null,null,null,null,null,null,null,null,null,null,null,null,null,null,null,null,null,null,null,null,null,null,null,null,null,null,null,null,null,null,null,38]
[null,null,"　　　なし","・","　　　　あり",null,null,null,"（",null,null,"内容：",null,null,null,null,null,null,null,null,null,null,null,null,null,null,null,null,null,null,null,null,null,null,null,null,null,null,null,null,null,null,null,null,null,"）",null,null,false,false,null,{"$f":"IF(OR(AW47=TRUE,AX47=TRUE),\"\",\"【無料のプレゼント、試食・試飲の有無】を選択してください。（必須）\")","v":"【無料のプレゼント、試食・試飲の有無】を選択してください。（必須）"},{"$f":"IF(AX47=TRUE,IF(N47=\"\",\"【内容】を入力してください。（必須）\",\"\"),\"\")","v":""},null,null,null,39]
["希望する出展ブース\nサイズ及び必要資材等\n\n※必要数をご記入ください。\n\n※テント等の資材は自前に用意していただくか、レンタル(有料)となります。レンタル・持込の区別を必ず明記してください。","※販売のみ実施される団体は、小テントサイズ１張りのみの出展となります。",null,null,null,null,null,null,null,null,null,null,null,null,null,null,null,null,null,null,null,null,null,null,null,null,null,null,null,null,null,null,null,null,null,null,null,null,null,null,null,null,null,null,null,null,null,null,null,null,null,null,null,null,null,null,40]
[null,"レンタル資材（有料）",null,null,null,null,null,null,null,null,null,null,"　　　　希望する",null,null,"・",null,null,null,null,"希望しない",null,null,null,null,null,null,null,null,null,null,null,null,null,null,null,null,null,null,null,null,null,null,null,null,null,null,null,true,true,null,{"$f":"IF(OR(AW49=TRUE,AX49=TRUE),\"\",\"【レンタル資材の希望の有無】を選択してください。（必須）\")","v":""},null,null,null,null,41]
[null,"レンタル資材\n（有料）\n※レンタル料については、別途ご連絡します。\n※レンタル数量の変更やキャンセルは10月10日（金）までです。",null,null,"小テント （1.8×2.7m）",null,null,null,null,null,null,null,null,null,"張","横幕（中テント用3方囲、白、1.8×9m)",null,null,null,null,null,null,null,null,null,null,null,null,null,null,null,null,null,null,null,null,null,null,null,null,null,null,null,null,"組",null,null,null,null,null,null,null,null,null,null,null,42]
[null,null,null,null,"中テント （2.7×3.6m）",null,null,null,null,null,null,null,null,null,"張","横幕（大テント用3方囲、白、1.8×12.6m)",null,null,null,null,null,null,null,null,null,null,null,null,null,null,null,null,null,null,null,null,null,null,null,null,null,null,null,null,"組",null,null,null,null,null,null,null,null,null,null,null,43]
[null,null,null,null,"大テント （3.6×5.4m）",null,null,null,null,null,null,null,null,null,"張","※備考",null,null,null,null,null,null,null,null,null,null,null,null,null,null,null,null,null,null,null,null,null,null,null,null,null,null,null,null,null,null,null,null,null,null,null,null,null,null,{"$f":"IF(AM51>0,IF(AND(AZ51=\"\",BA51=\"\",BB51=\"\",AZ50=\"\",BA52=\"\",BB52=\"\"),\"横幕（大）\"&AM51&\"組\",\"、横幕（大）\"&AM51&\"組\"),\"\")","v":""},null,44]
[null,null,null,null,"長机    （180×60cm）",null,null,null,null,null,null,null,null,null,"脚",null,null,null,null,null,null,null,null,null,null,null,null,null,null,null,null,null,null,null,null,null,null,null,null,null,null,null,null,null,null,null,null,null,null,null,null,null,null,null,null,null,45]
[null,null,null,null,"パイプ椅子",null,null,null,null,null,null,null,null,null,"脚",null,null,null,null,null,null,null,null,null,null,null,null,null,null,null,null,null,null,null,null,null,null,null,null,null,null,null,null,null,null,null,null,null,null,null,null,null,null,null,null,null,46]
[null,"持込み資材\n\n※規定サイズを\n超えるテントは\n設置できません",null,null,"小テント （1.8×2.7m）",null,null,null,null,null,null,null,null,null,"張","※その他、持込資材があればご記入ください。",null,null,null,null,null,null,null,null,null,null,null,null,null,null,null,null,null,null,null,null,null,null,null,null,null,null,null,null,null,null,null,null,null,null,null,{"$f":"IF(AX49=TRUE,IF(SUM(M55:N59)>0,\"\",\"【持込み資材】を入力してください。（必須）\"),\"\")","v":"【持込み資材】を入力してください。（必須）"},null,null,null,null,47]
[null,null,null,null,"中テント （2.7×3.6m）",null,null,null,null,null,null,null,null,null,"張",null,null,null,null,null,null,null,null,null,null,null,null,null,null,null,null,null,null,null,null,null,null,null,null,null,null,null,null,null,null,null,null,null,null,null,null,{"$f":"IF(M55>0,\"小テント\"&M55&\"張\",\"\")","v":""},{"$f":"IF(M56>0,IF(AZ56=\"\",\"中テント\"&M56&\"張\",\"、中テント\"&M56&\"張\"),\"\")","v":""},{"$f":"IF(M57>0,IF(AND(AZ56=\"\",BA56=\"\"),\"大テント\"&M57&\"張\",\"、大テント\"&M57&\"張\"),\"\")","v":""},{"$f":"IF(M58>0,IF(AND(AZ56=\"\",BA56=\"\",BB56=\"\"),\"その他テント（\"&F59&\"）\"&M58&\"張\",\"、その他テント（\"&F59&\"）\"&M58&\"張\"),\"\")","v":""},null,48]
[null,null,null,null,"大テント （3.6×5.4m）",null,null,null,null,null,null,null,null,null,"張",null,null,null,null,null,null,null,null,null,null,null,null,null,null,null,null,null,null,null,null,null,null,null,null,null,null,null,null,null,null,null,null,null,null,null,null,{"$f":"IF(M58>0,IF(F59=\"\",\"テントサイズ（大・中・小）\",\"\"),\"\")","v":""},{"$f":"IF(M58>0,IF(K59=\"\",IF(AZ57=\"\",\"テントの縦幅\",\"、テントの縦幅\"),\"\"),\"\")","v":""},{"$f":"IF(M58>0,IF(N59=\"\",IF(AND(AZ57=\"\",BA57=\"\"),\"テントの横幅\",\"、テントの横幅\"),\"\"),\"\")","v":""},null,null,49]
[null,null,null,null,"その他テントサイズ",null,null,null,null,null,null,null,null,null,"張",null,null,null,null,null,null,null,null,null,null,null,null,null,null,null,null,null,null,null,null,null,null,null,null,null,null,null,null,null,null,null,null,null,null,null,null,null,null,null,null,null,50]
[null,null,null,null,"（サイズ：",null,null,null,"／",null,null,null,"m ×",null,"m）",null,null,null,null,null,null,null,null,null,null,null,null,null,null,null,null,null,null,null,null,null,null,null,null,null,null,null,null,null,null,null,null,null,null,null,null,null,null,null,null,null,{"$f":"BE58+1","v":51}]
[null,"※出展スペースの希望を伺った後、事務局で全体調整のうえ配置を決定します。スペースの調整をお願いする場合がございますので、ご了承ください。なお、上記規定サイズを超えるテントは設置できません。"]
["使   用   施   設","電               源\n※申告以上の使用を確認した場合、追加料金を頂くことがございますのでご承知ください。",null,null,"（使用機材とワット数）",null,null,null,null,null,null,null,"コンセント１個（２口あり）1500ｗまで"]
[null,null,null,null,"不要　",null,null,"・",null,null,null,null,"要","（コンセント",null,null,null,null,null,null,null,"個　希望します）",null,null,null,null,null,null,null,null,null,null,null,null,null,null,"（有料：コンセント１個2,000円）\n※総ワット数を把握したいので、ご自身でタップを用意される場合も、使用予定機材をすべてご記入ください。",null,null,null,null,null,null,null,null,null,null,null,true,true,null,{"$f":"IF(OR(AW62=TRUE,AX62=TRUE),\"\",\"【電源利用の希望の有無】を選択してください。（必須）\")","v":""},{"$f":"IF(AX62=TRUE,IF(P62>0,\"\",\"【利用口数】を入力してください。（必須）\"),\"\")","v":"【利用口数】を入力してください。（必須）"},null,null,null,{"$f":"BE59+1","v":52}]
[null,null,null,null,"使用機材",null,null,null,null,null,null,null,null,null,null,null,null,null,null,null,null,null,null,null,null,null,null,null,null,"※記載例",null,null,null,null,null,null,null,null,null,null,null,null,null,null,null,null,null,null,null,null,null,null,null,null,null,null,{"$f":"BE62+1","v":53}]
[null,null,null,null,null,null,null,null,null,null,null,null,null,null,null,null,null,null,null,null,null,null,null,null,null,null,null,null,null,"ノートパソコン",null,null,null,null,null,null,null,null,null,null,null,null,null,null,null,null,null,null,null,null,null,{"$f":"IF(AX62=TRUE,IF(G64=\"\",\"【使用機材】を入力してください。（必須）\",\"\"),\"\")","v":"【使用機材】を入力してください。（必須）"},{"$f":"IF(G64=\"\",\"\",IF(G65=\"\",G64,\"\"))","v":""},{"$f":"IF(N64=\"\",\"\",IF(N65=\"\",IF(BA64=\"\",N64,\"、\"&N64),\"\"))","v":""},{"$f":"IF(T64=\"\",\"\",IF(T65=\"\",IF(AND(BA64=\"\",BB64=\"\"),T64,\"、\"&T64),\"\"))","v":""},null,54]
[null,null,null,null,"台数",null,null,null,null,null,null,null,null,null,null,null,null,null,null,null,null,null,null,null,null,null,null,null,null,"○○台",null,null,null,null,null,null,null,null,null,null,null,null,null,null,null,null,null,null,null,null,null,null,{"$f":"IF(G64=\"\",\"\",IF(G66=\"\",G64,\"\"))","v":""},{"$f":"IF(N64=\"\",\"\",IF(N66=\"\",IF(BA65=\"\",N64,\"、\"&N64),\"\"))","v":""},{"$f":"IF(T64=\"\",\"\",IF(T66=\"\",IF(AND(BA65=\"\",BB65=\"\"),T64,\"、\"&T64),\"\"))","v":""},null,55]
[null,null,null,null,"1台当たりのワット数",null,null,null,null,null,null,null,null,null,null,null,null,null,null,null,null,null,null,null,null,null,null,null,null,"××ワット",null,null,null,null,null,null,null,null,null,null,null,null,null,null,null,null,null,null,null,null,null,null,null,null,null,null,56]
[null,"水　　　　　　道",null,null,"不要　",null,"・",null,null,null,"要",null,null,null,null,null,null,null,null,null,null,null,null,null,null,null,null,null,null,null,null,null,null,null,null,null,"※出展エリアが限定されます。",null,null,null,null,null,null,null,null,null,null,null,false,false,null,{"$f":"IF(OR(AW67=TRUE,AX67=TRUE),\"\",\"【水道利用の希望の有無】を選択してください。（必須）\")","v":"【水道利用の希望の有無】を選択してください。（必須）"},null,null,null,null,57]
[null,"火　気　使　用",null,null,"なし　",null,"・",null,null,null,"あり",null,null,"※火気の使用は、消防署へ事前の届出を行います。　消火器の準備を各自でしてください",null,null,null,null,null,null,null,null,null,null,null,null,null,null,null,null,null,null,null,null,null,null,null,null,null,null,null,null,null,null,null,null,null,null,true,false,null,{"$f":"IF(OR(AW68=TRUE,AX68=TRUE),\"\",\"【火気使用の有無】を選択してください。（必須）\")","v":""},null,null,null,null,58]
["資材の搬入・搬出\n\n※搬入・搬出車両は１台を基本としておりますので、ご協力をお願いします。\n\n※必ず車高1.8m以下の車両をご指定ください。","搬入方法",null,null,"前日午後搬入",null,null,null,null,null,null,null,null,null,null,"宅配",null,null,null,null,null,null,null,null,"庁舎内荷物預かり",null,null,null,null,null,null,null,null,null,null,null,null,null,null,null,null,null,null,null,null,null,null,null,false,true,null,{"$f":"IF(OR(AW69=TRUE,AX69=TRUE),\"\",\"【搬入・搬出方法】を選択してください。（必須）\")","v":""},null,null,null,null,59]
[null,null,null,null,"当日早朝搬入",null,null,null,null,null,null,null,"　　　車両",null,null,null,null,null,null,null,null,null,null,null,"台車等",null,null,null,null,null,null,null,null,null,null,null,null,null,null,"会場内持ち込み"]
[null,"搬出方法",null,null,"当日夕方搬出",null,null,null,null,null,null,null,"　　　車両",null,null,null,null,null,null,null,null,null,null,null,"台車等",null,null,null,null,null,null,null,null,null,null,null,null,null,null,"荷物預かり"]
[null,null,null,null,"翌日以降",null,null,null,null,null,null,null,null,null,null,"宅配",null,null,null,null,null,null,null,null,"引き取り",null,null,null,null,null,null,null,null,null,null,null,null,null,null,null,null,null,null,null,null,null,null,null,null,null,null,null,null,null,null,null,{"$f":"BE69+1","v":60}]
[null,"※当日は、車両を使用して搬入・搬出を行う方のみ記入してください。",null,null,null,null,null,null,null,null,null,null,null,null,null,null,null,null,null,null,null,null,null,null,null,null,null,null,null,null,null,null,null,null,null,null,null,null,null,null,null,null,null,null,null,null,null,null,null,null,null,null,null,null,null,null,{"$f":"BE72+1","v":61}]
[null,"メーカー名",null,null,null,null,null,null,null,"車名",null,null,null,null,null,null,null,null,null,null,null,"車番(ﾅﾝﾊﾞｰﾌﾟﾚｰﾄ)\n※記載例：なにわ330○×－△■",null,null,null,null,null,null,null,null,null,null,null,null,null,null,null,null,null,null,null,null,null,null,null,null,null,null,false,false,null,{"$f":"IF(AW69=TRUE,IF(AND(AW74=FALSE,AX74=FALSE),\"【レンタカーの有無】を選択してください。（必須）\",\"\"),\"\")","v":""},{"$f":"IF(AW74=TRUE,\"※車種、車番が確定次第速やかに報告願います。\",\"\")","v":""},{"$f":"IF(AX74=TRUE,IF(R74=\"\",\"メーカー名\",\"\"),\"\")","v":""},{"$f":"IF(AX74=TRUE,IF(AL74=\"\",IF(BB74=\"\",\"車名\",\"、車名\"),\"\"),\"\")","v":""},{"$f":"IF(AX74=TRUE,IF(AH75=\"\",IF(AND(BB74=\"\",BC74=\"\"),\"車番\",\"、車番\"),\"\"),\"\")","v":""},62]
[null,"※レンタカー等の理由により車番が未定の場合は、決まり次第速やかにご連絡ください。",null,null,null,null,null,null,null,null,null,null,null,null,null,null,null,null,null,null,null,null,null,null,null,null,null,null,null,null,null,null,null,null,null,null,null,null,null,null,null,null,null,null,null,null,null,null,null,null,null,null,null,null,null,null,63]
[null,"※その他（特記事項がありましたらご記入願います。）",null,null,null,null,null,null,null,null,null,null,null,null,null,null,null,null,null,null,null,null,null,null,null,null,null,null,null,null,null,null,null,null,null,null,null,null,null,null,null,null,null,null,null,null,null,null,null,null,null,null,null,null,null,null,64]
[null,null,null,null,null,null,null,null,null,null,null,null,null,null,null,null,null,null,null,null,null,null,null,null,null,null,null,null,null,null,null,null,null,null,null,null,null,null,null,null,null,null,null,null,null,null,null,null,null,null,null,null,null,null,null,null,65]
[null,"搬入日",null,null,null,null,null,null,null,null,null,null,"・",null,null,null,null,null,null,null,null,null,null,null,null,null,null,null,null,null,null,null,null,null,null,null,null,null,null,null,null,null,null,null,null,null,null,null,false,false,null,{"$f":"IF(OR(AW78=TRUE,AX78=TRUE),\"\",\"【搬入日】を選択してください。（必須）\")","v":"【搬入日】を選択してください。（必須）"},null,null,null,null,66]
["写真の使用について","「水都おおさか森林の市2025」の様子を、実行委員会担当者が出展者の写真を撮影する場合があります。",null,null,null,null,null,null,null,null,null,null,null,null,null,null,null,null,null,null,null,null,null,null,null,null,null,null,null,null,null,null,null,null,null,null,null,null,null,null,null,null,null,null,null,null,null,null,null,null,null,null,null,null,null,null,67]
[null,"撮影された写真の一部は、下記の内容において使用され、明記のない案件での使用はいたしません。（使用期限はありません）",null,null,null,null,null,null,null,null,null,null,null,null,null,null,null,null,null,null,null,null,null,null,null,null,null,null,null,null,null,null,null,null,null,null,null,null,null,null,null,null,null,null,null,null,null,null,null,null,null,null,null,null,null,null,68]
[null,"　①実行委員会主催者ホームページや広報誌等への活動報告、紹介",null,null,null,null,null,null,null,null,null,null,null,null,null,null,null,null,null,null,null,null,null,null,null,null,null,null,null,null,null,null,null,null,null,null,null,null,null,null,null,null,null,null,null,null,null,null,null,null,null,null,null,null,null,null,69]
[null,"　②次年次以降の森林の市ポスター、パンフレット等への宣伝用",null,null,null,null,null,null,null,null,null,null,null,null,null,null,null,null,null,null,null,null,null,null,null,null,null,null,null,null,null,null,null,null,null,null,null,null,null,null,null,null,null,null,null,null,null,null,null,null,null,null,null,null,null,null,{"$f":"BE81+1","v":70}]
[null,null,null,"承諾する",null,null,null,null,null,null,"承諾しない",null,null,null,null,null,null,null,null,null,null,null,null,null,null,null,null,null,null,null,null,null,null,null,null,null,null,null,null,null,null,null,null,null,null,null,null,null,null,null,null,null,null,null,null,null,71]
["備               考","その他　※荷物の事前預かり（前日より前）がある場合は、持ち込み方法と日時をこちらに記入してください。",null,null,null,null,null,null,null,null,null,null,null,null,null,null,null,null,null,null,null,null,null,null,null,null,null,null,null,null,null,null,null,null,null,null,null,null,null,null,null,null,null,null,null,null,null,null,null,null,null,null,null,null,null,null,72]
[null,null,null,null,null,null,null,null,null,null,null,null,null,null,null,null,null,null,null,null,null,null,null,null,null,null,null,null,null,null,null,null,null,null,null,null,null,null,null,null,null,null,null,null,null,null,null,null,null,null,null,null,null,null,null,null,73]
[null,null,null,null,null,null,null,null,null,null,null,null,null,null,null,null,null,null,null,null,null,null,null,null,null,null,null,null,null,null,null,null,null,null,null,null,null,null,null,null,null,null,null,null,null,null,null,null,null,null,null,null,null,null,null,null,74]
[null,"※請求書の宛名等に関して、申込団体名称と異なる指定がある場合には、こちらに記入してください。",null,null,null,null,null,null,null,null,null,null,null,null,null,null,null,null,null,null,null,null,null,null,null,null,null,null,null,null,null,null,null,null,null,null,null,null,null,null,null,null,null,null,null,null,null,null,null,null,null,null,null,null,null,null,75]
[null,"　フ　リ　ガ　ナ",null,null,null,null,null,null,null,null,null,null,null,null,null,null,null,null,null,null,null,null,null,null,null,null,null,null,null,null,null,null,null,null,null,null,null,null,null,null,null,null,null,null,null,null,null,null,null,null,null,null,null,null,null,null,76]
[null,null,null,null,null,null,null,null,null,null,null,null,null,null,null,null,null,null,null,null,null,null,null,null,null,null,null,null,null,null,null,null,null,null,null,null,null,null,null,null,null,null,null,null,null,null,null,null,null,null,null,null,null,null,null,null,77]
["■記載内容に変更が生じた場合は、９月12日（金）までにご連絡ください。",null,null,null,null,null,null,null,null,null,null,null,null,null,null,null,null,null,null,null,null,null,null,null,null,null,null,null,null,null,null,null,null,null,null,null,null,null,null,null,null,null,null,null,null,null,null,null,null,null,null,null,null,null,null,null,78]
["■記載漏れがあると、出展者選考ができない場合があります。提出前に、記載事項を再度ご確認ください。",null,null,null,null,null,null,null,null,null,null,null,null,null,null,null,null,null,null,null,null,null,null,null,null,null,null,null,null,null,null,null,null,null,null,null,null,null,null,null,null,null,null,null,null,null,null,null,null,null,null,null,null,null,null,null,79]
["■飲食物の製造・販売については、実行委員会に事前に相談していただくとともに食品衛生関係の必要な手続きを出展者の責任で行い、許可を取ってください。",null,null,null,null,null,null,null,null,null,null,null,null,null,null,null,null,null,null,null,null,null,null,null,null,null,null,null,null,null,null,null,null,null,null,null,null,null,null,null,null,null,null,null,null,null,null,null,null,null,null,null,null,null,null,null,80]
["＜個人情報の取り扱いについて＞\n  ご提出いただいた個人情報は、本イベントに関する各種ご案内・連絡に限り使用します。ご本人の承諾がない限り第三者に開示することはいたしません。",null,null,null,null,null,null,null,null,null,null,null,null,null,null,null,null,null,null,null,null,null,null,null,null,null,null,null,null,null,null,null,null,null,null,null,null,null,null,null,null,null,null,null,null,null,null,null,null,null,null,null,null,null,null,null,81]
[null,null,null,null,null,null,null,null,null,null,null,null,null,null,null,null,null,null,null,null,null,null,null,null,null,null,null,null,null,null,null,null,null,null,null,null,null,null,null,null,null,null,null,null,null,null,null,null,null,null,null,null,null,null,null,null,82]

{"sheet":"CSV抽出用","index":1,"n_rows":3,"n_cols":55,"rows_kept":3,"cut":false,"hidden":true,"merged":[[0,42,0,45],[0,46,0,51],[0,41,1,41],[0,52,1,52],[0,54,1,54],[0,53,1,53],[0,38,0,40],[0,9,0,14],[0,15,0,20],[0,21,0,27],[0,28,0,30],[0,31,0,37]]}
["申　し　込　み　団　体　名　等",null,null,null,null,null,null,null,null,"連　　絡　　先",null,null,null,null,null,"出　　展　　内　　容",null,null,null,null,null,"必要資材（レンタル）",null,null,null,null,null,null,"必要資材（持ち込み）",null,null,"実行委員会負担分（リース）",null,null,null,null,null,null,"全体テント数",null,null,"特記事項","使　用　設　備",null,null,null,"資　材　運　搬",null,null,null,null,null,"備　考\n(荷物の事前預かり）","別途宛名指定（見積書・請求書等）","フリガナ\n別途宛名指定（見積書・請求書等）"]
["申込団体名","団体名フリガナ","出展名称（看板名）","出展名称フリガナ","〒","住           所\n（資料送付先）","担当者\n所属・役職","担当者名","担当者名\nフリガナ","TEL","FAX","メールアドレス","当日ブース責任者","当日ブース責任者\n生年月日","携帯電話等","2020\nキャッチフレーズ","内容の種別","体験\n有料・無料","価格","無料配布\n・試食等","出展内容","テント\n小(ﾘｰｽ)\n1.8×2.7","テント\n中(ﾘｰｽ)\n2.7×3.6","テント\n大(ﾘｰｽ)\n3.6×5.4","長机\n(ﾘｰｽ)","パイプ椅子\n(ﾘｰｽ)","横幕\n中（ﾘｰｽ）","横幕\n大（ﾘｰｽ）","テント\n小(自前)\n","テント\n中(自前)\n2.0×.2.0\n2.5×2.5\n2.7×2.7","テント\n大(自前)\n3.0×3.0","テント\n小","テント\n中","テント\n大","長机","パイプ椅子","横幕\n中","横幕\n大","テント\n小","テント\n中","テント\n大",null,"電源\n数","ワット\n数","水道","火気","搬入搬出\n方法","申請台数","車種・登録番号\n（公園内のテント出展分は通行許可申請に必要。「レンタカーのため未定」もOK。\n他は当日確認用。多少不備ありでもOK。）","搬入日","搬入作業\n時間見込","特記事項"]
[{"$f":"出展申込書_2025!B12","v":0},{"$f":"出展申込書_2025!D11","v":0},{"$f":"IF(出展申込書_2025!B15=\"\",出展申込書_2025!B12,出展申込書_2025!B15)","v":0},{"$f":"IF(出展申込書_2025!D14=\"\",出展申込書_2025!D11,出展申込書_2025!D14)","v":0},{"$f":"出展申込書_2025!C18&\"-\"&出展申込書_2025!E18","v":"-"},{"$f":"出展申込書_2025!B19","v":0},{"$f":"出展申込書_2025!D20","v":0},{"$f":"出展申込書_2025!B22","v":0},{"$f":"出展申込書_2025!D21","v":0},{"$f":"出展申込書_2025!Q21&出展申込書_2025!R21&出展申込書_2025!AA21&出展申込書_2025!AC21&出展申込書_2025!AL21&出展申込書_2025!AM21","v":"（）-"},{"$f":"出展申込書_2025!Q23&出展申込書_2025!R23&出展申込書_2025!AA23&出展申込書_2025!AC23&出展申込書_2025!AL23&出展申込書_2025!AM23","v":""},{"$f":"出展申込書_2025!R24","v":0},{"$f":"出展申込書_2025!D26","v":0},{"$f":"出展申込書_2025!D27","v":"00:00:00"},{"$f":"出展申込書_2025!R26&出展申込書_2025!AL26&出展申込書_2025!AC26&出展申込書_2025!AL26&出展申込書_2025!AM26","v":"--"},{"$f":"出展申込書_2025!B32","v":0},{"$f":"出展申込書_2025!AZ34&出展申込書_2025!BA34&出展申込書_2025!BB34&出展申込書_2025!BC34","v":"体験"},{"$f":"IF(AND(出展申込書_2025!AX34=TRUE,出展申込書_2025!AY34=TRUE),\"有料・無料\",IF(出展申込書_2025!AX34=TRUE,\"無料\",IF(出展申込書_2025!AY34=TRUE,\"有料\",\"\")))","v":"有料"},{"$f":"IF(出展申込書_2025!AY34=TRUE,出展申込書_2025!AA34,IF(出展申込書_2025!AA34=\"\",\"\",\"要確認\"))","v":0},{"$f":"IF(AND(出展申込書_2025!AW47=TRUE,出展申込書_2025!AX47=TRUE),\"要確認\",IF(出展申込書_2025!AW47=TRUE,\"なし\",IF(出展申込書_2025!AX47=TRUE,\"あり（\"&出展申込書_2025!N47&\"）\",\"\")))","v":""},{"$f":"出展申込書_2025!AZ35&出展申込書_2025!BA35&出展申込書_2025!BB35&出展申込書_2025!BC35","v":"〈体験内容〉\n切った丸太の輪切りの重量を測って、指定したグラム及びニアピンであれば粗品をプレゼントします。"},{"$f":"出展申込書_2025!M50","v":0},{"$f":"出展申込書_2025!M51","v":0},{"$f":"出展申込書_2025!M52","v":0},{"$f":"出展申込書_2025!M53","v":0},{"$f":"出展申込書_2025!M54","v":0},{"$f":"出展申込書_2025!AM50","v":0},{"$f":"出展申込書_2025!AM51","v":0},{"$f":"出展申込書_2025!M55+IF(出展申込書_2025!F59=出展申込書_2025!AY50,出展申込書_2025!M58,0)","v":0},{"$f":"出展申込書_2025!M56+IF(出展申込書_2025!F59=出展申込書_2025!AY51,出展申込書_2025!M58,0)","v":0},{"$f":"出展申込書_2025!M57+IF(出展申込書_2025!F59=出展申込書_2025!AY52,出展申込書_2025!M58,0)","v":0},null,null,null,null,null,null,null,{"$f":"IF(V3+AC3=出展申込書_2025!#REF!,V3+AC3,\"要確認\")","v":{"$error":"#REF!"}},{"$f":"IF(W3+AD3=出展申込書_2025!#REF!,W3+AD3,\"要確認\")","v":{"$error":"#REF!"}},{"$f":"IF(X3+AE3=出展申込書_2025!#REF!,X3+AE3,\"要確認\")","v":{"$error":"#REF!"}},{"$f":"IF(出展申込書_2025!P53=\"\",\"\",\"〈レンタル資材〉\"&CHAR(10)&出展申込書_2025!P53)&IF(出展申込書_2025!P56=\"\",\"\",CHAR(10)&\"〈持込資材〉\"&CHAR(10)&出展申込書_2025!P56)","v":""},{"$f":"出展申込書_2025!P62","v":0},{"$f":"出展申込書_2025!G65*出展申込書_2025!G66+出展申込書_2025!N65*出展申込書_2025!N66+出展申込書_2025!T65*出展申込書_2025!T66","v":0},{"$f":"IF(AND(出展申込書_2025!AW67=TRUE,出展申込書_2025!AX67=TRUE),\"要確認\",IF(出展申込書_2025!AW67=TRUE,\"不要\",IF(出展申込書_2025!AX67=TRUE,\"要\",\"\")))","v":""},{"$f":"IF(AND(出展申込書_2025!AW68=TRUE,出展申込書_2025!AX68=TRUE),\"要確認\",IF(出展申込書_2025!AW68=TRUE,\"なし\",IF(出展申込書_2025!AX68=TRUE,\"あり\",\"\")))","v":"なし"},{"$f":"IF(AND(出展申込書_2025!AW69=TRUE,出展申込書_2025!AX69=TRUE),\"複数\",IF(出展申込書_2025!AW69=TRUE,\"車両\",IF(出展申込書_2025!AX69=TRUE,\"車両以外\",\"\")))","v":"車両以外"},1,{"$f":"IF(出展申込書_2025!AW69=TRUE,IF(出展申込書_2025!AW74=TRUE,\"レンタカー\",\"\")&CHAR(10)&\"[車名]\"&出展申込書_2025!AL74&CHAR(10)&\"[車番]\"&出展申込書_2025!AH75,\"\")","v":""},{"$f":"IF(AND(出展申込書_2025!AW78=TRUE,出展申込書_2025!AX78=TRUE),\"両日\",IF(出展申込書_2025!AW78=TRUE,\"前日午後\",IF(出展申込書_2025!AX78=TRUE,\"当日早朝\",\"\")))","v":""},{"$f":"IF(出展申込書_2025!#REF!=\"\",出展申込書_2025!#REF!&\"分\",出展申込書_2025!#REF!&\"時間\"&IF(出展申込書_2025!#REF!=\"\",\"\",出展申込書_2025!#REF!&\"分\"))","v":{"$error":"#REF!"}},{"$f":"出展申込書_2025!B77","v":0},{"$f":"出展申込書_2025!B83","v":0},{"$f":"出展申込書_2025!B88","v":"　フ　リ　ガ　ナ"},{"$f":"出展申込書_2025!D87","v":0}]